Cogmind - Beta 17.1 @@@ ROGUE MODE // 2026.09.14 @ 22:52:16 Player: fai Result: Destroyed by B-48 Gladiator with Mace Performance ------------- Evolutions (3) 1500 Regions Visited (6) 1200 Robots Destroyed (118) 590 Value Destroyed (4139) 4139 Prototype IDs (3) 60 Alien Tech Used (0) 0 Bonus (9542) 9542 TOTAL SCORE: 17031 Bonus ------- High Alert Combat Kills 165 Follower Combat Kills 27 Prayed to X0-1V1 5000 Major X0-1V1 Interference 2450 Entered Garrisons 400 Used RIF Installer 1500 Cogmind --------- Core Integrity 0/545 Matter 128/300 Energy 160/160 System Corruption 22% Temperature Cool (9) Movement Core (100) Ox1 Location -7/Garrison Parts ------- > --- POWER (1) -------- Light Nuclear Core > --- PROPULSION (4) --- (None) > --- UTILITY (5) ------ Relay Coupler [NC] (28) > --- WEAPON (3) ------- (None) > --- INVENTORY (5) ---- Large Storage Unit Hardened Medium Armor Plating Relay Coupler [NC] (34) Relay Coupler [Sentry] (24) Relay Coupler [Demolisher] (29) Peak State ------------ > --- POWER ------------ Light Nuclear Core > --- PROPULSION ------- Improved Medium Treads Wheel Wheel Compact Wheel > --- UTILITY ---------- High-capacity Storage Unit Improved Targeting Computer Hardened Medium Armor Plating Relay Coupler [NC] X0-1V1's Piety Tracker > --- WEAPON ----------- Plasma Rifle Thermic Laser Great Maul > --- INVENTORY -------- Carbon-fiber Leg Carbon-fiber Leg Carbon-fiber Leg Wheel Wheel Large Storage Unit Large Matter Pod Kinecellerator Relay Coupler [NC] Relay Coupler [NC] Relay Coupler [Grunt] Relay Coupler [Sentry] Relay Coupler [Specialist] Rocket Launcher Datajack Improved Datajack [Rating: 47] Favorites ----------- Power Light Nuclear Core Engine Ion Engine Power Core Light Nuclear Core Propulsion Wheel Treads Improved Medium Treads Leg Carbon-fiber Leg Wheel Wheel Utility Large Storage Unit Device X0-1V1's Piety Tracker Storage Large Storage Unit Processor Improved Targeting Computer Hackware Relay Coupler [Grunt] Protection Light Armor Plating Weapon Minigun Energy Gun EM Pulse Gun Ballistic Gun Minigun Launcher Grenade Launcher Impact Weapon Great Maul Special Melee Weapon Improved Datajack Build | -11 -10 -10 -8 -8 -7 -7 ------- Run | Yrd Mat Sub Mat Gar Fac Gar Slots Evolved 6 | . . . 4 . 2 . Power . | . . . . . . . Propulsion 2 | . . . 1 . 1 . Utility 3 | . . . 2 . 1 . Weapon 1 | . . . 1 . . . Parts Attached 86 | 7 11 4 29 18 13 4 Power 9 | 1 1 . 4 2 . 1 Engine 4 | 1 1 . 2 . . . Core 5 | . . . 2 2 . 1 Reactor . | . . . . . . . Propulsion 31 | 3 1 2 9 8 7 1 Treads 2 | . . . 1 . 1 . Leg 7 | 1 . . . 6 . . Wheel 22 | 2 1 2 8 2 6 1 Hover . | . . . . . . . Flight . | . . . . . . . Utility 22 | 1 5 . 5 4 5 2 Device 7 | . 3 . 2 . 1 1 Storage 3 | 1 1 . . 1 . . Processor 3 | . . . 2 . 1 . Hackware 6 | . . . . 3 2 1 Protection 3 | . 1 . 1 . 1 . Artifact . | . . . . . . . Weapon 24 | 2 4 2 11 4 1 . Energy Gun 8 | 2 2 . 2 2 . . Energy Cannon . | . . . . . . . Ballistic Gun 9 | . 1 2 6 . . . Ballistic Cannon . | . . . . . . . Launcher 2 | . . . 1 . 1 . Special Weapon . | . . . . . . . Impact Weapon 3 | . 1 . 2 . . . Slashing Weapon . | . . . . . . . Piercing Weapon . | . . . . . . . Special Melee Weapon 2 | . . . . 2 . . Unidentified Prototypes 2 | . 1 . 1 . . . Parts Lost 44 | . 5 2 8 8 8 13 Power 4 | . . . 2 1 1 . Propulsion 21 | . . 2 3 5 3 8 Utility 10 | . 2 . 2 . 4 2 Weapon 9 | . 3 . 1 2 . 3 Highest Loss Streak 11 | . 2 1 4 4 4 11 To Critical Strikes . | . . . . . . . Average Backups 11 | 2 9 12 11 13 15 14 Power . | . . . 1 . . . Propulsion 1 | 1 2 2 1 . 2 3 Utility 5 | . 2 4 3 7 9 8 Weapon 2 | . 2 4 3 2 1 1 Tool/Special . | . . . . . . . Unused Backups 18 | . 1 1 7 2 . 7 Power 1 | . . . 1 . . . Propulsion 5 | . . . 5 . . . Utility 8 | . . . . 1 . 7 Weapon 3 | . 1 1 . 1 . . Tool/Special 1 | . . . 1 . . . Average Slot Usage (%) 93 | . 98 99 95 92 84 75 Engine 4 | . 14 14 1 . . . Core 4 | . . . 6 8 4 . Leg 3 | . . . . 10 8 2 Wheel 22 | . 28 27 25 14 15 16 Device 11 | . 9 14 14 14 4 3 Storage 10 | . 15 14 8 8 7 7 Processor 4 | . . . 7 7 4 . Hackware 2 | . . . . 2 10 18 Protection 1 | . 2 . 1 . 1 2 Energy Gun 7 | . 21 4 3 1 10 3 Ballistic Gun 12 | . 4 23 19 16 . . Impact Weapon 3 | . 1 . 4 3 5 3 Special Melee Weapon 1 | . . . . 2 2 5 Peak Build Rating 47 | 6 21 23 42 45 47 46 Average Rating 28 | 5 8 22 35 37 39 32 On Entrance 22 | . 6 21 23 38 45 27 Avg Prop Armor Cover (%) 10 | 9 . . 8 . 11 11 Naked Turns . | . . . . . . . Heaviest Build 66 | 14 34 34 55 40 66 57 Greatest Support 45 | 26 26 20 40 45 45 45 Greatest Overweight (x) 5 | 2 1 1 3 1 5 4 Average Overweight (x) . | . . 1 . . 1 1 Largest Inventory Capacity 20 | 8 15 15 15 20 20 20 Average Capacity 15 | 6 14 15 15 14 19 19 Most Carried 18 | 5 13 15 15 15 18 18 Average Carried 11 | 2 9 13 12 12 15 15 Final Capacity 20 | 8 15 15 15 15 20 5 Final Carried 15 | 5 13 14 15 15 14 5 Class Distribution -------------------- 32% | Mutant 22% | Bothacker-Mutant 16% | Scavenger-Mutant 13% | Scavenger-Gunner 5% | Gunner 4% | Scavenger-Skirmisher Dominant Class ---------------- Mutant | -10/Materials Scavenger-Mutant | -10/Subcaves Scavenger-Gunner | -8/Materials Bothacker-Mutant | -8/Garrison Bothacker-Mutant | -7/Factory Bothacker-Mutant | -7/Garrison Resources | -11 -10 -10 -8 -8 -7 -7 ----------- Run | Yrd Mat Sub Mat Gar Fac Gar Matter Collected 3479 | 279 306 72 1299 1002 332 189 Remotely . | . . . . . . . Salvage Created 4398 | 146 690 115 1548 1050 510 339 Parts 233 | 5 32 7 94 51 31 13 Haulers Intercepted 1 | . . . 1 . . . Recyclers Shooed 1 | . . . 1 . . . Parts Field Recycled . | . . . . . . . Retrieved Matter . | . . . . . . . Parts Self-Destructed . | . . . . . . . Prevented . | . . . . . . . Parts Restored . | . . . . . . . Kills | -11 -10 -10 -8 -8 -7 -7 ------- Run | Yrd Mat Sub Mat Gar Fac Gar Combat Hostiles Destroyed 78 | . 10 3 27 22 5 11 Guns 61 | . 7 3 26 22 . 3 AOE 16 | . 3 . 1 . 4 8 Classes Destroyed 15 | 2 5 1 3 2 1 1 Worker 6 | . 1 . 4 . 1 . Builder 12 | . 2 . 4 . 6 . Tunneler 5 | 3 . . 1 . 1 . Hauler 1 | . . . 1 . . . Recycler 7 | 1 1 . 3 . 2 . Operator 3 | . 1 . 2 . . . Watcher 5 | . 2 . 3 . . . Swarmer 18 | . . . 9 4 . 5 Grunt 37 | . 10 . 11 9 3 4 Brawler 2 | . . . . . 2 . Duelist 1 | . . . . 1 . . Sentry 13 | . . . 7 6 . . Hunter 4 | . . . . 3 . 1 Programmer 1 | . . . . . . 1 Subdweller 3 | . . 3 . . . . Best Kill Streak 9 | 4 3 2 7 8 6 9 Combat Bots Only 9 | . 2 2 7 8 4 9 Max Kills in Single Turn 4 | 1 2 1 2 2 4 3 Gunslinging 1 | . . . . 1 . . Exploded 3 | . 2 . 1 . 3 3 Melee . | . . . . . . . Uniques/NPCs Destroyed . | . . . . . . . Combat | -11 -10 -10 -8 -8 -7 -7 -------- Run | Yrd Mat Sub Mat Gar Fac Gar Hostile Shots Fired 447 | . 51 13 144 79 20 140 Missed 132 | . 12 4 48 22 5 41 Hits 315 | . 39 9 96 57 15 99 Melee 2 | . . . . . 1 1 Projectile 313 | . 39 9 96 57 14 98 AOE 4 | . . 4 . . . . Critical Strikes 7 | . . . . 2 1 4 Damage Taken 5128 | 39 544 315 1339 945 662 1284 Core 1235 | 39 108 80 279 170 133 426 Absorbed by Shields 345 | . . . . . . 345 Regen/Repaired (Parts) 101 | . . . 101 . . . Core Remaining (%) 47 | 84 . 9 . 48 . . Volleys Fired 266 | 7 48 11 89 51 21 39 Largest 3 | 2 2 2 3 3 2 2 Hottest 160 | 80 80 70 105 75 160 160 Shots Fired 519 | 14 88 21 196 126 34 40 Gun 488 | 14 88 21 193 126 24 22 Cannon . | . . . . . . . Launcher 31 | . . . 3 . 10 18 Special . | . . . . . . . Kinetic 324 | . 14 17 167 126 . . Thermal 80 | . 4 4 26 . 24 22 Explosive 31 | . . . 3 . 10 18 Electromagnetic 84 | 14 70 . . . . . Robot Hit Streak 57 | 5 11 7 19 57 20 7 Robot Miss Streak 6 | 2 5 1 6 2 1 2 Penetration Max . | . . . . . . . Secondary Targets 16 | . 1 1 6 8 . . Max Gunslinging Chain 1 | . 1 1 1 1 . . Shots Hit Robots 382 | 9 51 16 134 115 31 26 Core Hits 221 | 5 27 7 68 71 20 23 Critical Kills 4 | . 1 . 2 1 . . Critical Parts Destroyed 4 | . . . 1 1 1 1 Critical Strikes 15 | . 3 1 3 2 4 2 Burn 5 | . . 1 . . 3 1 Destroy 6 | . 1 . 3 2 . . Corrupt 2 | . 2 . . . . . Smash 2 | . . . . . 1 1 Melee Attacks 66 | . 11 . 14 22 12 7 Impact 47 | . 11 . 14 12 8 2 Slashing . | . . . . . . . Piercing . | . . . . . . . Sneak Attacks 1 | . . . . 1 . . Combat Hostiles . | . . . . . . . Follow-up Attacks . | . . . . . . . Damage Inflicted 8892 | 162 986 276 2949 1829 1210 1480 Guns 6116 | 117 719 276 2558 1829 373 244 Cannons 100 | . . . 100 . . . Explosions 2462 | 45 267 . 291 . 751 1108 Melee 214 | . . . . . 86 128 Ramming . | . . . . . . . Kinetic 4574 | . 143 239 2363 1829 . . Thermal 1311 | 45 317 37 295 . 373 244 Explosive 2150 | . . . 291 . 751 1108 Electromagnetic 643 | 117 526 . . . . . Impact 214 | . . . . . 86 128 Slashing . | . . . . . . . Piercing . | . . . . . . . Highest Corruption 20 | . 3 3 . . 17 20 Average Corruption 7 | . 2 3 . . 10 17 Corruption Purged . | . . . . . . . Corruption Blocked . | . . . . . . . Effects 39 | . 12 7 . . 5 15 Message Errors 6 | . 1 . . . 3 2 Matter Fused 10 | . 5 2 . . . 3 Heat Flow Errors 2 | . . . . . . 2 Energy Discharges 5 | . 2 . . . . 3 Parts Rejected 1 | . . . . . . 1 Parts Fused 1 | . . . . . . 1 Data Loss (minor) 4 | . 2 1 . . 1 . Data Loss (major) 5 | . 1 2 . . . 2 Misfires 1 | . . . . . 1 . Alerts 1 | . . 1 . . . . Weapon Failures 3 | . 1 1 . . . 1 Overload Shots . | . . . . . . . Overflow Damage 204 | . . . 7 . 46 151 Projectiles . | . . . . . . . Explosions 30 | . . . 7 . . 23 Melee 174 | . . . . . 46 128 Knockbacks . | . . . . . . . Impact . | . . . . . . . Kinetic . | . . . . . . . Secondary . | . . . . . . . Self-Inflicted Damage 240 | 39 55 . . . 63 83 Shots 8 | 1 1 . . . 2 4 Rammed 1 | . . . . . . 1 Targets Rammed 1 | . . . . . . 1 Kicked . | . . . . . . . Crushed . | . . . . . . . Highest Temperature 211 | 48 211 . 36 35 99 198 Average Temperature 41 | 20 64 . 10 11 37 55 Received Heat Transfer 1369 | . 279 . 504 369 108 109 Siege Activations . | . . . . . . . Martial Activations . | . . . . . . . Shielding Activations . | . . . . . . . Robots Disrupted . | . . . . . . . Combat Hostiles . | . . . . . . . Robots Corrupted 2 | . . . . . 1 1 Combat Hostiles 1 | . . . . . 1 . Parts Fried 2 | . 2 . . . . . Impact Corruptions 5 | . . . . . 1 4 Robots Melted . | . . . . . . . Combat Hostiles . | . . . . . . . Parts Melted 2 | . . . 1 . 1 . Heat Transferred 3249 | 50 398 185 666 . 1250 700 Parts Sabotaged . | . . . . . . . Parts Stolen . | . . . . . . . Parts Stripped . | . . . . . . . Power Chain Reactions 6 | 1 5 . . . . . Alert | -11 -10 -10 -8 -8 -7 -7 ------- Run | Yrd Mat Sub Mat Gar Fac Gar Maximum Alert Level 2 | . . . 1 2 1 2 Low Security (%) 41 | 100 100 . 29 10 3 30 Level 1 38 | . . . 70 22 96 38 Level 2 19 | . . . . 66 . 30 Level 3 . | . . . . . . . Level 4 . | . . . . . . . Level 5 . | . . . . . . . High Security . | . . . . . . . Max Security . | . . . . . . . Peak Influence 619 | 10 130 . 371 619 324 480 Initial 324 | . . . . 54 324 183 Average 237 | 2 21 . 226 438 274 302 Influence Increases 2693 | 20 404 . 968 685 238 378 Destroy 0b10 Robot/C 1540 | . 200 . 560 440 100 240 Destroy 0b10 Robot/NC 205 | 20 35 . 90 5 50 5 Destroy Leader 222 | . 44 . 128 20 10 20 Allied During Kill 7 | . . . 6 . . 1 Successful Hack 29 | . 12 . 3 14 . . Disable Machine 60 | . 30 . 15 . 15 . Anti-Garrison Action 200 | . . . . 150 . 50 Destroy Structure 175 | . 23 . 31 41 33 47 Lose Combat Pursuer 255 | . 60 . 135 15 30 15 Influence Decreases 2322 | 20 404 . 884 150 595 269 Entered New Map 404 | . . . . 30 295 79 Time Decay 851 | 20 247 . 464 . 120 . Lost Part 401 | . 31 . 80 80 80 130 Lost Ally 240 | . . . 40 40 100 60 Purge Threat 426 | . 126 . 300 . . . Squads Dispatched 10 | . 1 . 7 . 2 . Investigation 2 | . 1 . 1 . . . Extermination . | . . . . . . . Reinforcement 8 | . . . 6 . 2 . Assault . | . . . . . . . Garrison . | . . . . . . . Intercept . | . . . . . . . Searches Triggered . | . . . . . . . Construction Impeded 3 | . . . 1 . 2 . Haulers Reinforced . | . . . . . . . Active Scanning Responses . | . . . . . . . Cargo Convoy Interrupts . | . . . . . . . Stealth | -11 -10 -10 -8 -8 -7 -7 --------- Run | Yrd Mat Sub Mat Gar Fac Gar Distress Signals 8 | . 1 . 6 . 1 . Communications Jammed . | . . . . . . . Distress Signals . | . . . . . . . Times Spotted 141 | . 18 5 55 26 11 26 Peak Tracking Total 11 | . 4 2 9 5 11 8 Tactical Retreats 10 | . 2 . 4 1 2 1 Traps | -11 -10 -10 -8 -8 -7 -7 ------- Run | Yrd Mat Sub Mat Gar Fac Gar Traps Triggered 12 | . 3 . 4 3 1 1 Indirectly . | . . . . . . . Trap Hack Attempts . | . . . . . . . Triggered . | . . . . . . . Disarmed . | . . . . . . . Reprogrammed . | . . . . . . . Reused . | . . . . . . . Traps Extracted . | . . . . . . . Installed . | . . . . . . . Triggered . | . . . . . . . Machines | -11 -10 -10 -8 -8 -7 -7 ---------- Run | Yrd Mat Sub Mat Gar Fac Gar Machines Disabled 8 | . 2 . 1 3 1 1 Max in Single Turn 1 | . 1 . 1 1 1 1 Garrison Relay 4 | . . . . 3 . 1 Machines Repaired . | . . . . . . . Machines Dismantled . | . . . . . . . Machines Sabotaged . | . . . . . . . Overloaded Fab Kills . | . . . . . . . Hacking | -11 -10 -10 -8 -8 -7 -7 --------- Run | Yrd Mat Sub Mat Gar Fac Gar Machines Accessed 17 | . 6 . 8 2 1 . Terminals 12 | . 6 . 4 2 . . Fabricators . | . . . . . . . Repair Stations 1 | . . . 1 . . . Recycling Units . | . . . . . . . Scanalyzers 2 | . . . 2 . . . Garrison Access 2 | . . . 1 . 1 . Total Hacks 42 | . 14 . 23 4 1 . Successful 23 | . 9 . 12 1 1 . Failed 18 | . 5 . 10 3 . . Catastrophic 2 | . 1 . 1 . . . Database Lockouts 1 | . . . 1 . . . Manual 26 | . 12 . 14 . . . Terminals 32 | . 14 . 14 4 . . Fabricators . | . . . . . . . Repair Stations 2 | . . . 2 . . . Recycling Units . | . . . . . . . Scanalyzers 5 | . . . 5 . . . Garrison Access 3 | . . . 2 . 1 . Terminal Hacks 7 | . 4 . 2 1 . . Record 1 | . 1 . . . . . Unreport Threat 4 | . 2 . 2 . . . Surveillance Status 1 | . 1 . . . . . Garrison Registry 1 | . . . . 1 . . Fabricator Hacks . | . . . . . . . Repair Station Hacks 2 | . . . 2 . . . Scan Component 1 | . . . 1 . . . Repair 1 | . . . 1 . . . Recycling Unit Hacks . | . . . . . . . Scanalyzer 4 | . . . 4 . . . Retrieve Study 4 | . . . 4 . . . Garrison Access Hacks 2 | . . . 1 . 1 . Unlock Access 2 | . . . 1 . 1 . Unauthorized Hacks 8 | . 5 . 3 . . . Terminals 8 | . 5 . 3 . . . Botnet 8 | . 5 . 3 . . . Fabricators . | . . . . . . . Repair Stations . | . . . . . . . Recycling Units . | . . . . . . . Scanalyzers . | . . . . . . . Garrison Access . | . . . . . . . Data Cores Recovered 2 | . . . 2 . . . Used . | . . . . . . . Hacking Detections 14 | . 5 . 6 2 1 . Full Trace Events . | . . . . . . . Feedback Events . | . . . . . . . Feedback Blocked . | . . . . . . . Robot Schematics Acquired . | . . . . . . . Robots Built . | . . . . . . . Authchips . | . . . . . . . Time . | . . . . . . . Total Robot Build Rating . | . . . . . . . Part Schematics Acquired . | . . . . . . . Parts Built . | . . . . . . . Authchips . | . . . . . . . Time . | . . . . . . . Total Part Build Rating . | . . . . . . . Part Studies Acquired 4 | . . . 4 . . . Parts Repaired 1 | . . . 1 . . . Time 38 | . . . 38 . . . Parts Recycled . | . . . . . . . Recycled Matter . | . . . . . . . Retrieved Matter . | . . . . . . . Retrieved Components . | . . . . . . . Parts Scanalyzed . | . . . . . . . Part Schematics Acquired . | . . . . . . . Parts Damaged . | . . . . . . . Bothacking | -11 -10 -10 -8 -8 -7 -7 ------------ Run | Yrd Mat Sub Mat Gar Fac Gar Used RIF Installer 3 | . . . . 2 . 1 Coupler Efficiency 1 | . . . . 1 . . Structural Interface 1 | . . . . . . 1 Robots Hacked 11 | . . . . 5 3 3 Non-combat . | . . . . . . . Combat 11 | . . . . 5 3 3 Robot Hacks Applied 11 | . . . . 5 3 3 overwrite_iff 4 | . . . . 1 3 . formatsys_high 7 | . . . . 4 . 3 Relay Couplers Released 18 | . . . . 10 . 8 Machine Destruction 15 | . . . . 10 . 5 Programmers 3 | . . . . . . 3 Attached 6 | . . . . 3 2 1 Fabnet Peak Effective % . | . . . . . . . Robots Rewired . | . . . . . . . Allies Hacked . | . . . . . . . Hacks Repelled . | . . . . . . . Allies | -11 -10 -10 -8 -8 -7 -7 -------- Run | Yrd Mat Sub Mat Gar Fac Gar Total Allies 13 | . . . 2 5 3 3 Largest Group 3 | . . . 2 2 2 3 Highest-Rated Group 48 | . . . 16 45 45 48 Highest-Rated Ally 29 | . . . 8 29 29 16 Total Orders . | . . . . . . . Ally Attacks 39 | . . . 10 8 7 14 Total Damage 414 | . . . 45 143 120 106 Kills 2 | . . . 1 . . 1 Allies Corrupted . | . . . . . . . Allies Melted . | . . . . . . . X0-1V1 Amusement Gains 112 | . 5 . 20 . 87 . Average Entertainment 24 | . 5 2 13 13 62 100 Good Acts 17 | . . . 11 2 1 3 Bad Acts 16 | . . . 8 6 2 . Intel | -11 -10 -10 -8 -8 -7 -7 ------- Run | Yrd Mat Sub Mat Gar Fac Gar Active Infowar (turns) 681 | . 440 . 241 . . . Optics 241 | . . . 241 . . . Seismic 440 | . 440 . . . . . Robot Analysis Total . | . . . . . . . Derelict Logs Recovered 1 | . . 1 . . . . Drone Launches . | . . . . . . . Drone Recoveries . | . . . . . . . Exploration | -11 -10 -10 -8 -8 -7 -7 ------------- Run | Yrd Mat Sub Mat Gar Fac Gar Turns Passed 4205 | 83 956 245 1308 1037 253 323 Spaces Moved 2956 | 54 684 197 981 715 130 195 Core 23 | 11 . . . 12 . . Treads . | . . . . . . . Legs 271 | 3 . . . 233 22 13 Wheels 2662 | 40 684 197 981 470 108 182 Hover . | . . . . . . . Flight . | . . . . . . . Fastest Speed 50 | 50 90 95 83 85 95 70 Average Speed 97 | 86 103 95 86 103 103 102 Slowest Speed 260 | 150 105 95 115 190 190 260 Overloaded Moves . | . . . . . . . Propulsion Burnouts . | . . . . . . . Robots Hopped . | . . . . . . . Potential Cave-ins . | . . . . . . . Cave-ins Triggered 1 | . . . . . 1 . Exploration Rate (%) 44 | 4 97 16 80 70 5 39 Regions Visited 6 Branch Regions 1 Pre-discovered Areas . | . . . . . . . Known Exits Taken 2 | . . . 1 . 1 . Unknown Exits Taken 3 | 1 1 1 . . . . Scrap Searched . | . . . . . . . Spaces Dug 21 | . 2 . 12 1 6 . Terrain Destroyed 163 | . 22 1 40 1 56 43 Melee 21 | . 2 . 12 1 6 . Projectile 3 | . . 1 2 . . . AOE 139 | . 20 . 26 . 50 43 Terrain Rammed . | . . . . . . . Walls Destroyed . | . . . . . . . Machines Disabled . | . . . . . . . Actions | -11 -10 -10 -8 -8 -7 -7 --------- Run | Yrd Mat Sub Mat Gar Fac Gar Total 3752 | 72 823 233 1258 899 197 270 Wait 157 | . 46 12 73 21 3 2 Move 2952 | 53 683 196 981 714 130 195 Hop . | . . . . . . . Pick Up 76 | 4 17 4 27 17 3 4 Fast Attach 42 | 6 2 1 17 9 6 1 Attach 40 | . 5 2 10 6 10 7 Detach 9 | . . . 1 1 6 1 Swap 58 | 2 6 3 19 19 5 4 Drop 52 | . 5 4 27 14 1 1 Fire 266 | 7 48 11 89 51 21 39 Melee 66 | . 11 . 14 22 12 7 Ram 1 | . . . . . . 1 Kick . | . . . . . . . Crush . | . . . . . . . Escape Stasis 32 | . . . . 24 . 8 Rewire 1 | . . . . 1 . . Trap . | . . . . . . . Miscellaneous . | . . . . . . . Route ------- -11/Scrapyard -10/Materials (discovered 5 exits: [*Mat x3] / [*Min] / [*Sub]) -10/Subcaves -8/Materials (discovered 5 exits: *Fac x3 / [*Sto] / Gar) -8/Garrison (discovered 3 exits: *Fac x3) -7/Factory -7/Garrison History --------- Turn | Location | Event 14 | -11/Scrapyard | Discovered new exit (range 16) 84 | -11/Scrapyard | Entered Materials 302 | -10/Materials | Build established: Mutant 319 | -10/Materials | Discovered new exit (range 9) 413 | -10/Materials | Discovered new exit (range 13) 755 | -10/Materials | Discovered new exit (range 16) 835 | -10/Materials | Core integrity fell below 50% 892 | -10/Materials | Discovered new exit (range 12) 1026 | -10/Materials | Discovered new exit (range 2) 1035 | -10/Materials | Prayed at D.C.S.S. Altar Unit 1040 | -10/Materials | Entered Subcaves 1141 | -10/Subcaves | Ambushed by Subdweller buried in earth 1144 | -10/Subcaves | Core integrity fell below 20% 1237 | -10/Subcaves | Learned Materials emergency access door positions 1239 | -10/Subcaves | Discovered new exit (range 7) 1285 | -10/Subcaves | Entered Materials 1285 | -8/Materials | Evolved 4 slots: Propulsion x1, Utility x2, Weapon x1 1356 | -8/Materials | X0-1V1 sent allied G-34 Mercenary (x2) 1500 | -8/Materials | Lost 4 parts (1p2n1u) 1501 | -8/Materials | Heat dissipation permanently improved by X0-1V1 (+15; -75 max core) 1519 | -8/Materials | Weapon slot count temporarily expanded by X0-1V1 (+1) 1667 | -8/Materials | Lost 4 parts (1p1n1u1w) 1701 | -8/Materials | Discovered new exit (range 8) 1711 | -8/Materials | Destroyed 7 combat bots 1787 | -8/Materials | Core integrity restored by X0-1V1 (+109) 1923 | -8/Materials | Weapon slot count reverted to normal (-1) 1932 | -8/Materials | X0-1V1 announced a LAN party 1965 | -8/Materials | Central database locked down 2008 | -8/Materials | Discovered new exit (range 3) 2021 | -8/Materials | X0-1V1 activates XOMVISION 2158 | -8/Materials | Discovered new exit (range 11) 2180 | -8/Materials | Discovered new exit (range 10) 2284 | -8/Materials | X0-1V1 redirected Transport squads to designated parking area 2384 | -8/Materials | Repaired Minigun+ 2593 | -8/Materials | Identified exit to Garrison 2593 | -8/Materials | Entered Garrison 2635 | -8/Garrison | Triggered checkpoint 2707 | -8/Garrison | Garrison Relay disabled 2777 | -8/Garrison | Triggered checkpoint 2777 | -8/Garrison | Triggered checkpoint 2818 | -8/Garrison | Lost 3 parts (1p2n) 2845 | -8/Garrison | Discovered new exit (range 15) 2878 | -8/Garrison | Discovered new exit (range 85) 2878 | -8/Garrison | Discovered new exit (range 50) 2878 | -8/Garrison | Discovered new exit (range 22) 2945 | -8/Garrison | Melee accuracy permanently improved by X0-1V1 (+8%; -80 max core) 2972 | -8/Garrison | Destroyed 8 combat bots 2993 | -8/Garrison | X0-1V1 caused items to flee you 3003 | -8/Garrison | Installed Relay Interface Framework 3094 | -8/Garrison | Expanded RIF knowledge: Coupler Efficiency 3141 | -8/Garrison | Garrison Relay disabled 3188 | -8/Garrison | Items stopped fleeing you 3220 | -8/Garrison | Lost 4 parts (3n1w) 3245 | -8/Garrison | Triggered checkpoint 3305 | -8/Garrison | Triggered checkpoint 3346 | -8/Garrison | X0-1V1 sent hostile H-55 Commando (x3) 3443 | -8/Garrison | Triggered checkpoint 3447 | -8/Garrison | Core integrity fell below 50% 3464 | -8/Garrison | Garrison Relay disabled 3580 | -8/Garrison | Build established: Bothacker-Mutant 3630 | -8/Garrison | Entered Factory 3630 | -7/Factory | Accompanied by 2 allies 3630 | -7/Factory | Evolved 2 slots: Propulsion x1, Utility x1 3701 | -7/Factory | Crushed by falling debris 3732 | -7/Factory | Lost 4 parts (2n2u) 3836 | -7/Factory | Lost 5 allies 3859 | -7/Factory | System corruption reached 10% 3883 | -7/Factory | Identified exit to Garrison 3883 | -7/Factory | Entered Garrison 3907 | -7/Garrison | Expanded RIF knowledge: Structural Interface 3969 | -7/Garrison | Triggered checkpoint 3983 | -7/Garrison | Garrison Relay disabled 4066 | -7/Garrison | Core integrity fell below 50% 4121 | -7/Garrison | Destroyed 9 combat bots 4133 | -7/Garrison | Triggered checkpoint 4173 | -7/Garrison | Triggered checkpoint 4180 | -7/Garrison | Core integrity fell below 20% 4195 | -7/Garrison | Lost 3 allies 4200 | -7/Garrison | X0-1V1 downgraded hostiles (x3) 4206 | -7/Garrison | Destroyed by B-48 Gladiator with Mace Last Messages --------------- 04174_ Carbon-fiber Leg destroyed. 04175_ System corrupted: Substantial component data lost. 04180_ Carbon-fiber Leg destroyed. 04181_ Imp. Medium Treads destroyed. 04181_ RIF reveals location of phase wall. 04189_ Carbon-fiber Leg destroyed. 04189_ Slammed into S-27 Virus. 04196_ S-27 Virus destroyed. 04198_ System corrupted: Matter fused (-7). 04200_ X0-1V1: "We can take them down a peg or two." B-48 Gladiator reshaped into weaker Brawler. S-27 Virus reshaped into weaker Swarmer. 04200_ Thermic Laser destroyed. 04200_ Dropped Hcp. Storage Unit. 04206_ Wheel+ destroyed. 04206_ Relay Coupler [Grunt] destroyed. 04206_ System corrupted by crushing effect (+2). 04206_ X0-1V1 chortles! Map ----- +----------------------------------------------------+ | ?????????????????????????????????????????????????? | | ?????????????????????????????????????????????????? | | ?????????????????????????????????????????????????? | | ?????????????????????????????????????????????????? | | ?????????????????????????????????????????????????? | | ?????????????????????????????????????????????????? | | ?????????????????????????????????????????????????? | | ?????????????????????????????????????????????????? | | ?????????????????????????????????????????????????? | | ?????????????????????????????????????????????????? | | ?????????????????????????????????????????????????? | | ?????????????????????????????????????????????????? | | ?????????????????????????????????????????????????? | | ?????????????????????????????????????????????????? | | ?????????????????????????????????????????????????? | | ?????????????????????????????????????????????????? | | ?????????????????????????????????????????????????? | | ?????????????????????????????????????????????????? | | ?????????????????????????????????????????????????? | | ????????????????????????############ #??????????? | | ????????????????????????# !* #??????????? | | ????????????????????????# !!%!! #??????????? | | ????????????????????????# s###+##### #??????????? | | ????????????????????????# #?#/#?????????????????? | | ????????????????????????# b###b#####?????????????? | | ????????????????????????#@ g / g+ ????????? | | ??????????????????####### ##### ###?????????????? | | ??????????????????# ## #???? #???????????????? | | ??????????######### =## ##????#???????????????? | | ??????????# *% ####+### #??????????? | | ?????????? #??????????? | | ?????????? = #??????????? | | ??????????? # # ## %[###########??????????? | | ???????????###!! # ## = ###??????????????????? | | ???????????# ! #??????????????????? | | ???????????# #??????????????????? | | ???????????# =% #??????????????????? | | ??????######= = #??????????????????? | | ??????# # %###% # ## ###??????????????????? | | ???#### # ## ## ########?????????????? | | ???# =% ??????????? | | ?### ! *%= ??????????? | | ?# = ^ ??????????? | | ?# [ # # ## +### ##++####+#### ???????????? | | ?# # #### #?# #?????????????????????????? | | ### ##### #?######?????????????????????????? | | + #????????????????????????????????? | | + [ ### ####????????????????????????????????? | | #### ###?# #???????????????????????????????????? | | #??# #???# #???????????????????????????????????? | +----------------------------------------------------+ Best States ------------- Heat Dissipation 49 Energy Generation 14 Energy Capacity 265 Matter Stores 800 Matter Capacity 800 Sight Range 24 Terrain Scan Density 10 Armor Coverage 800 Evasion (%) 55 Targeting Accuracy 6 Kinecelleration 30 Relay Coupler Types 2 Relay Coupler Value 71 Item Schematics ----------------- None Robot Schematics ------------------ None Fabricated ------------ Nothing Repaired ---------- Minigun | 19% | -8/Materials Studied --------- Wheel | -8/Materials | Hacked Mace | -8/Materials | Hacked Datajack | -8/Materials | Hacked Minigun | -8/Materials | Hacked Alien Tech Used ----------------- None Achievements -------------- Construction Begets Destruction Do Not Disturb Spot Them First Challenges ------------ None Game ------ Seed QuantumPulseScrapsphere Manual? 0 Play Time 01:19:06 Cumulative 152.6 hours Start 2026.09.14 @ 21:30:07 End 2026.09.14 @ 22:52:16 Sessions 1 Manual Loads 0 Difficulty Rogue Special Mode None Game No. 71 Rogue 71 Adventurer 0 Explorer 0 Win Type - Total 3 Types 2/0/0/0/1/0/0/0/0/0 Lore% 18 Gallery% 50 Achievement% 32 Wizard Run 0 Options --------- Layout 1 ASCII 0 Keyboard 0 Movement Arrows Keybinds 0 Fullscreen 1 Font 24/Smallcaps Map View 50x35 Zoom Use 0% Tactical HUD 1 Map Filters NONE Filters NONE Steam 1 RUN: 1b2854eb-2504-494f-9cba-315901317f00